Workbook

Sheet 12 Burden Hours Collection
A1: RURAL UTILITIES SERVICE
A2: REQUEST FOR APPROVAL TO SELL CAPITAL ASSETS (RUS FORM 369)
A3: INFORMATION COLLECTION BURDEN HOURS
A4: OMB # 0572 - 0020
A5: 2025-06-18
A7: Estimated No. of Total Respondents (Borrowers) | C7: 35
A8: Average hours per response | C8: =I9/G9 -> 2.074 | J8: Number of responses per respondent | K8: =G9/C7 -> 2.31
A9: Gray Columns have automatic formulas. DO NOT input numbers in these columns. | F9: TOTAL | G9: =SUM(G12:G27) -> 81 | I9: =SUM(I12:I27) -> 168 | K9: =SUM(K12:K27) -> $16,166
A10: (A) | B10: (B) | C10: (C) | D10: (D) | E10: (E) | F10: (F) | G10: (G) | H10: (H) | I10: (I) | J10: (J) | K10: (K)
A11: Regulation Reference | B11: Title | C11: Form No. (If Any) | D11: % of Respondents Line Item is Applicable To | E11: Estimated # of Respondents | F11: Reports Filed Annually | G11: Total Responses (E) x (F) | H11: Estimated # of Hours Per Response | I11: Estimated Total Hours (G) x (H) | J11: Prof. Wage Rate | K11: Total Cost (I) x (J)
A12: 1717.616(c)(4) | B12: Exchanges or trades of plant in place between a RUS borrower and a Non-RUS borrower | C12: Written | D12: 3% | E12: =D12*$C$7 -> 1 | F12: 1 | G12: =E12*F12 -> 1 | H12: 4 | I12: =IF((H12*G12)="","",(H12*G12)) -> 4 | J12: ='12 Est Prof Wage Rate'!$G$36 -> $96.23 | K12: =IF((J12*I12)="","",(J12*I12)) -> $385
A13: 1717.616(b) | B13: Sales without prior approval to RUS | C13: Written | D13: 14% | E13: 5 | F13: 1 | G13: 5 | H13: 1 | I13: 5 | J13: ='12 Est Prof Wage Rate'!$G$36 -> $96.23 | K13: $481
A14: 1717.616(d)(2)(i)-(v), (d)(3)(i)-(ii), (e), (f)(3), (g) | B14: Request to Sell Capital Assets | C14: Written or RUS Form 369 | D14: 100% | E14: 35 | F14: 1 | G14: 35 | H14: 3 | I14: 105 | J14: ='12 Est Prof Wage Rate'!$G$36 -> $96.23 | K14: $10,104
A15: 1717.616(f)(2) | B15: Condemnation Petition or Complaint | C15: Written | D15: 3% | E15: =D15*$C$7 -> 1 | F15: 1 | G15: =E15*F15 -> 1 | H15: 2 | I15: =IF((H15*G15)="","",(H15*G15)) -> 2 | J15: ='12 Est Prof Wage Rate'!$G$36 -> $96.23 | K15: =IF((J15*I15)="","",(J15*I15)) -> $192
A16: 1717.616(f)(4) | B16: Sales of Real Estate and Plant in Place | C16: Written | D16: 3% | E16: =D16*$C$7 -> 1 | F16: 1 | G16: 1 | H16: 8 | I16: 8 | J16: ='12 Est Prof Wage Rate'!$G$36 -> $96.23 | K16: $770
A17: 1717.616(f)(5) | B17: Installment Sales | C17: Written | D17: 3% | E17: 1 | F17: 1 | G17: 1 | H17: 3 | I17: 3 | J17: ='12 Est Prof Wage Rate'!$G$36 -> $96.23 | K17: $289
A18: 1717.616(f)(6) | B18: Exchanges | C18: Written | D18: 6% | E18: =D18*$C$7 -> 2 | F18: 1 | G18: 2 | H18: 3 | I18: 6 | J18: ='12 Est Prof Wage Rate'!$G$36 -> $96.23 | K18: $577
B19: Recordkeeping Requirements | C19: Written | D19: 100% | E19: =D19*$C$7 -> 35 | F19: 1 | G19: 35 | H19: 1 | I19: 35 | J19: ='12 Est Prof Wage Rate'!$G$36 -> $96.23 | K19: $3,368
E20: 0 | G20: 0 | I20: 0 | J20: ='12 Est Prof Wage Rate'!$G$36 -> $96.23 | K20: $0
E21: 0 | G21: 0 | I21: 0 | J21: ='12 Est Prof Wage Rate'!$G$36 -> $96.23 | K21: $0
E22: 0 | G22: 0 | I22: 0 | J22: ='12 Est Prof Wage Rate'!$G$36 -> $96.23 | K22: $0
E23: 0 | G23: 0 | I23: 0 | J23: ='12 Est Prof Wage Rate'!$G$36 -> $96.23 | K23: $0
E24: 0 | G24: 0 | I24: 0 | J24: ='12 Est Prof Wage Rate'!$G$36 -> $96.23 | K24: $0
E25: 0 | G25: 0 | I25: 0 | J25: ='12 Est Prof Wage Rate'!$G$36 -> $96.23 | K25: $0
E26: =D26*$C$7 -> 0 | G26: =E26*F26 -> 0 | I26: =IF((H26*G26)="","",(H26*G26)) -> 0 | J26: ='12 Est Prof Wage Rate'!$G$36 -> $96.23 | K26: =IF((J26*I26)="","",(J26*I26)) -> $0
E27: 0 | G27: 0 | I27: 0 | J27: ='12 Est Prof Wage Rate'!$G$36 -> $96.23 | K27: $0

Sheet 12 Not Inc in Burden Hours
A1: ='12 Burden Hours Collection'!A1 -> RURAL UTILITIES SERVICE
A2: ='12 Burden Hours Collection'!A2 -> REQUEST FOR APPROVAL TO SELL CAPITAL ASSETS (RUS FORM 369)
A3: ='12 Burden Hours Collection'!A3 -> INFORMATION COLLECTION BURDEN HOURS
A4: ='12 Burden Hours Collection'!A4 -> OMB # 0572 - 0020
A5: ='12 Burden Hours Collection'!A5 -> 2025-06-18
A7: Estimated No. of Total Respondents (Applicants/Borrowers) | C7: 0 | J7: Estimated No. of Total Awards (Awardees) | K7: ='12 Burden Hours Collection'!K7 -> 0
A8: Average hours per response | C8: =I9/G9 ->  | J8: Number of responses per respondent | K8: =G9/C7 -> 
A9: Gray Columns have automatic formulas. DO NOT input numbers in these columns. | F9: TOTAL | G9: =SUM(G12:G18) -> 0 | I9: =SUM(I12:I18) -> 0 | K9: =SUM(K12:K18) -> $0
A10: (A) | B10: (B) | C10: (C) | D10: (D) | E10: (E) | F10: (F) | G10: (G) | H10: (H) | I10: (I) | J10: (J) | K10: (K)
A11: Regulation Reference | B11: Title | C11: Form No. (If Any) | D11: % of Respondents Line Item is Applicable To | E11: Estimated # of Respondents | F11: Reports Filed Annually | G11: Total Responses (E) x (F) | H11: Estimated # of Hours Per Response | I11: Estimated Total Hours (G) x (H) | J11: Prof. Wage Rate | K11: Total Cost (I) x (J)
E12: =D12*$C$7 -> 0 | G12: =E12*F12 -> 0 | I12: =IF((H12*G12)="","",(H12*G12)) -> 0 | J12: ='12 Est Prof Wage Rate'!$G$36 -> $96.23 | K12: =IF((J12*I12)="","",(J12*I12)) -> $0
E13: =D13*$C$7 -> 0 | G13: 0 | I13: 0 | J13: ='12 Est Prof Wage Rate'!$G$36 -> $96.23 | K13: $0
E14: =D14*$C$7 -> 0 | G14: 0 | I14: 0 | J14: ='12 Est Prof Wage Rate'!$G$36 -> $96.23 | K14: $0
E15: =D15*$K$7 -> 0 | G15: 0 | I15: 0 | J15: ='12 Est Prof Wage Rate'!$G$36 -> $96.23 | K15: $0
E16: =D16*$K$7 -> 0 | G16: 0 | I16: 0 | J16: ='12 Est Prof Wage Rate'!$G$36 -> $96.23 | K16: $0
E17: =D17*$K$7 -> 0 | G17: 0 | I17: 0 | J17: ='12 Est Prof Wage Rate'!$G$36 -> $96.23 | K17: $0
E18: =D18*$K$7 -> 0 | G18: 0 | I18: 0 | J18: ='12 Est Prof Wage Rate'!$G$36 -> $96.23 | K18: $0

Sheet 12 Est Prof Wage Rate
A1: ='12 Burden Hours Collection'!A1 -> RURAL UTILITIES SERVICE
A2: ='12 Burden Hours Collection'!A2 -> REQUEST FOR APPROVAL TO SELL CAPITAL ASSETS (RUS FORM 369)
A3: ='12 Burden Hours Collection'!A3 -> INFORMATION COLLECTION BURDEN HOURS
A4: ='12 Burden Hours Collection'!A4 -> OMB # 0572 - 0020
A5: ='12 Burden Hours Collection'!A5 -> 2025-06-18
A7: Instructions:
A8: 1. Use the U.S. Bureau of Labor Statistics Occupational Emplyment and Wage Statistics Link below to complete Columns A, B, C for the table below.
A9: a. Click the link: | B9: https://www.bls.gov/oes/tables.htm
A10: b. Under the latest Month Year (May 2024) click Occupation Profiles
A11: c. Use the Occupational Titles to choose which professions (A) need to be added to the table below. You can more than one occupation or just one.
A12: d. The code in front of each Occupational Title is the Occupation Code that goes in (B) for the table below.
A13: e. When you click on each Occupational Titles, choose the Mean Hourly Wage to input in (C) for the table below.
A14: 2. Use the U.S. Bureau of Labor Economic News Release, Employer Costs for Employee Compension to complete Column D for the table below.
A15: a. Click the link: | B15: https://www.bls.gov/news.release/ecec.toc.htm
A16: b. Choose "The PDF verison of the news release" link
A17: c. The latest (March 14, 2025) News Release for Employer Costs for Employee Compensation - December 2024 opens in separate tab.
A18: d. On first page, second paragraph use the benefit costs % of: | D18: 29.50%
A19: 3. For each profession fill in the % for (F). The total for the column should be 100%.
A20: a. Note that if there is only one profession then (F) would be 100%.
A22: Gray Columns have automatic formulas. DO NOT input numbers in these columns.
A23: (A) | B23: (B) | C23: (C) | D23: (D) | E23: (E) | F23: (F) | G23: (G)
A24: Profession | B24: Bureau of Labor Occupation Code 1.d | C24: Mean Wage 1.e | D24: Benefits 2 (C) * (2.d) | E24: Total Hourly Wage (C ) + (D) | F24: % Time Spent on Burden | G24: Weighted Hourly Salary (E) * (F)
A25: Manager Professional | B25: 11-9199 | C25: $72.06 | D25: =IF(C25=0,"",(C25*$D$18)) -> $21.26 | E25: =IF(SUM(C25:D25)=0,"",SUM(C25:D25)) -> $93.32 | F25: 45% | G25: =IF(E25="","",(E25*F25)) -> $41.99
A26: Administrative Assistant | B26: 43-9199 | C26: $23.42 | D26: =IF(C26=0,"",(C26*$D$18)) -> $6.91 | E26: =IF(SUM(C26:D26)=0,"",SUM(C26:D26)) -> $30.33 | F26: 10% | G26: =IF(E26="","",(E26*F26)) -> $3.03
A27: Attorney | B27: 23-1011 | C27: $87.86 | D27: =IF(C27=0,"",(C27*$D$18)) -> $25.92 | E27: =IF(SUM(C27:D27)=0,"",SUM(C27:D27)) -> $113.78 | F27: 45% | G27: =IF(E27="","",(E27*F27)) -> $51.20
D28: =IF(C28=0,"",(C28*$D$18)) ->  | E28: =IF(SUM(C28:D28)=0,"",SUM(C28:D28)) ->  | G28: =IF(E28="","",(E28*F28)) -> 
A36: TOTAL | D36: =IF(C36=0,"",(C36*#REF!)) ->  | F36: =SUM(F25:F35) -> 100% | G36: =SUM(G25:G35) -> $96.23

Sheet 14 Annual Cost to Fed Gov Est
A1: ='12 Burden Hours Collection'!A1 -> RURAL UTILITIES SERVICE
A2: ='12 Burden Hours Collection'!A2 -> REQUEST FOR APPROVAL TO SELL CAPITAL ASSETS (RUS FORM 369)
A3: ='12 Burden Hours Collection'!A3 -> INFORMATION COLLECTION BURDEN HOURS
A4: ='12 Burden Hours Collection'!A4 -> OMB # 0572 - 0020
A5: ='12 Burden Hours Collection'!A5 -> 2025-06-18
A7: 1. OPM GS & SES Pay Tables:
A8: Click Link | B8: Pay & Leave (opm.gov)
A9: Click "pay tables" from first paragraph
A10: Click current Year at top under Salaries & Wages
A12: a. OPM GS Pay Tables: Under "General Schedule (GS) & Locality Pay Tables" click 20## GS Pay Tables (ex. 2024 GS Pay Tables)
A13: Then choose Annual Rate Table for St. Louis - St. Charles - Farminton, MO-IL
A15: b. OPM SES Schedules: Under "Executive & Senior Level Employee Pay Tables" click "Rates of Pay for the Executive Schedule"
A16: Then choose Annual Rate Table for Basic Rates of Pay for Members of the Senior Executive Service.
A18: 2. Benefit % (OMB Memo M-08-13) | B18: https://obamawhitehouse.archives.gov/sites/default/files/omb/assets/omb/memoranda/fy2008/m08-13.pdf | K18: 36.25%
A20: Gray & Blue Columns have automatic formulas. DO NOT input numbers in these columns. | G20: Total | H20: =SUM(H22:H25) -> 7.00 | I20: =SUM(I22:I25) -> $576.12 | K20: =SUM(K22:K25) -> $20,164
A21: Staff Position | B21: GS Grade | C21: GS Step | D21: GS Salary | E21: Hourly Rate Calc | F21: Benefits Calc | G21: Total Salary Rate Calc | H21: Hours Required | I21: Cost Subtotals | J21: # of Responses | K21: Total Costs
A22: Engineering Branch Chief | B22: 14 | C22: 5 | D22: $144,715 | E22: =(D22/52)/40 -> $69.57 | F22: =E22*$K$18 -> $25.22 | G22: =E22+F22 -> $94.80 | H22: 0.50 | I22: =H22*G22 -> $47.40 | J22: ='12 Burden Hours Collection'!C7 -> 35 | K22: =ROUND((I22*J22),0) -> $1,659
A23: Engineer | B23: 13 | C23: 5 | D23: $122,465 | E23: =(D23/52)/40 -> $58.88 | F23: $21.34 | G23: =E23+F23 -> $80.22 | H23: 2.00 | I23: =H23*G23 -> $160.44 | J23: ='12 Burden Hours Collection'!C7 -> 35 | K23: =ROUND((I23*J23),0) -> $5,615
A24: Financial Operations Branch Chief | B24: 14 | C24: 5 | D24: $144,715 | E24: =(D24/52)/40 -> $69.57 | F24: $25.22 | G24: =E24+F24 -> $94.80 | H24: 0.50 | I24: $47.40 | J24: ='12 Burden Hours Collection'!C7 -> 35 | K24: =ROUND((I24*J24),0) -> $1,659
A25: Loan Specialist | B25: 13 | C25: 5 | D25: $122,465 | E25: $58.88 | F25: $21.34 | G25: $80.22 | H25: 4.00 | I25: $320.88 | J25: ='12 Burden Hours Collection'!C7 -> 35 | K25: =ROUND((I25*J25),0) -> $11,231
